[Event "Ujir Singh Thapa Memorial 2080"]
[Site "Butwal"]
[Date "2024.04.09"]
[Round "9.1"]
[White "Vipul Subhashi"]
[Black "Jaiswal, Rupesh"]
[Result "0-1"]
[ECO "B99"]
[WhiteElo "1971"]
[BlackElo "1969"]
[Annotator "RC"]
[PlyCount "70"]
[EventDate "2024.04.03"]
[EventType "swiss"]
[EventCountry "NEP"]
[SourceTitle "playchess.com"]
[Source "ChessBase"]
[SourceQuality "1"]
[TimeControl "3600+30"]

1. e4 {[%emt 0:07:08]} c5 {[%emt 0:00:01]} 2. Nf3 {[%emt 0:00:29]} d6 {[%emt 0:00:01]} 3. d4 {[%emt 0:00:10]} cxd4 {[%emt 0:00:02]} 4. Nxd4 {[%emt 0:00:07]} Nf6 {[%emt 0:00:03]} 5. Nc3 {[%emt 0:00:08]} a6 {[%emt 0:00:03]} 6. Bg5 {[%emt 0:00:08]} e6 {[%emt 0:00:12]} 7. f4 {[%emt 0:00:04]} Be7 {[%emt 0:00:03]} 8. Qf3 {[%emt 0:00:07]} Qc7 {[%emt 0:00:21]} 9. O-O-O {[%emt 0:00:08]} Nbd7 {[%emt 0:00:54]} 10. g4 {[%emt 0:00:13]} b5 {[%emt 0:00:35]} 11. Bh3 {[%emt 0:12:31]} b4 {[%emt 0:02:57]} 12. Nce2 {[%emt 0:01:47]} Bb7 {[%emt 0:00:31]} 13. Ng3 {[%emt 0:00:46]} Rc8 {[%emt 0:01:35]} 14. Kb1 {[%emt 0:02:43]} h6 15. Bh4 {[%emt 0:04:49]} g5 {[%emt 0:08:10]} 16. Rhe1 {[%emt 0:27:22]} gxh4 {[%emt 0:01:21]} 17. Nf1 {[%emt 0:01:16]} e5 {[%emt 0:03:14]} 18. g5 {[%emt 0:06:15]} exd4 {[%emt 0:06:58]} 19. gxf6 {[%emt 0:00:13]} Qxc2+ {[%emt 0:00:12]} 20. Ka1 {[%emt 0:00:02]} Bxf6 {[%emt 0:00:39]} 21. Qg4 {[%emt 0:01:20]} Qc7 {[%emt 0:02:45]} 22. e5 {[%emt 0:00:33]} dxe5 {[%emt 0:02:47]} 23. fxe5 {[%emt 0:00:13]} Bxe5 {[%emt 0:00:31]} 24. Qxd7+ {[%emt 0:03:23]} Qxd7 {[%emt 0:00:05]} 25. Bxd7+ {[%emt 0:00:05]} Kxd7 {[%emt 0:00:02]} 26. Rxe5 {[%emt 0:00:14]} Rhe8 {[%emt 0:00:25]} 27. Rf5 {[%emt 0:01:13]} Ke7 {[%emt 0:02:12]} 28. Rf4 {[%emt 0:00:14]} Red8 {[%emt 0:00:56]} 29. Rxh4 {[%emt 0:00:14]} Rc6 {[%emt 0:02:08]} 30. Ng3 {[%emt 0:00:27]} d3 {[%emt 0:01:14]} 31. Rxb4 {[%emt 0:00:13]} Ba8 {[%emt 0:00:33]} 32. Kb1 {[%emt 0:00:40]} Kf8 {[%emt 0:02:31]} 33. Rb3 {[%emt 0:00:51]} d2 {[%emt 0:00:42]} 34. Nf1 {[%emt 0:00:41]} Rc1+ {[%emt 0:00:18]} 35. Rxc1 {[%emt 0:00:09]} Be4+ {[%emt 0:00:03]} 0-1

[Event "Ujir Singh Thapa Memorial 2080"]
[Site "Butwal"]
[Date "2024.04.09"]
[Round "9.2"]
[White "Sinha, Sudhir Kumar"]
[Black "Thapa, Krishna"]
[Result "1-0"]
[ECO "B24"]
[WhiteElo "1968"]
[BlackElo "1963"]
[Annotator "RC"]
[PlyCount "71"]
[EventDate "2024.04.03"]
[EventType "swiss"]
[EventCountry "NEP"]
[SourceTitle "playchess.com"]
[Source "ChessBase"]
[SourceQuality "1"]
[TimeControl "3600+30"]

1. e4 {[%emt 0:05:23]} c5 {[%emt 0:02:27]} 2. Nc3 {[%emt 0:01:37]} e6 {[%emt 0:02:08]} 3. g3 {[%emt 0:02:58]} Nc6 {[%emt 0:01:39]} 4. Bg2 {[%emt 0:02:58]} Nf6 {[%emt 0:00:20]} 5. Nge2 {[%emt 0:01:06]} d5 {[%emt 0:03:08]} 6. exd5 {[%emt 0:01:29]} exd5 {[%emt 0:01:09]} 7. d4 {[%emt 0:02:18]} cxd4 {[%emt 0:02:38]} 8. Nxd4 {[%emt 0:00:11]} Be7 {[%emt 0:00:49]} 9. O-O {[%emt 0:00:17]} O-O {[%emt 0:00:12]} 10. Bf4 {[%emt 0:05:01]} Nxd4 {[%emt 0:16:27]} 11. Qxd4 {[%emt 0:00:45]} Be6 {[%emt 0:00:13]} 12. Rad1 {[%emt 0:03:53]} Qd7 {[%emt 0:27:04]} 13. Be5 {[%emt 0:04:09]} a6 {[%emt 0:04:58]} 14. Qd2 {[%emt 0:05:32]} Rfd8 {[%emt 0:00:47]} 15. Ne2 {[%emt 0:03:09]} Rac8 {[%emt 0:00:32]} 16. c3 {[%emt 0:03:14]} h6 {[%emt 0:00:39]} 17. Nf4 {[%emt 0:02:13]} b5 {[%emt 0:01:19]} 18. Nxe6 {[%emt 0:01:52]} fxe6 {[%emt 0:01:15]} 19. Qe2 {[%emt 0:01:02]} Rf8 {[%emt 0:00:31]} 20. Bh3 {[%emt 0:02:28]} Rce8 {[%emt 0:00:24]} 21. Rfe1 {[%emt 0:00:33]} Bd6 {[%emt 0:01:21]} 22. Bxf6 {[%emt 0:01:35]} Rxf6 {[%emt 0:00:18]} 23. Rxd5 {[%emt 0:00:48]} exd5 {[%emt 0:01:05]} 24. Qxe8+ {[%emt 0:01:16]} Qxe8 {[%emt 0:00:02]} 25. Rxe8+ {[%emt 0:00:18]} Kh7 {[%emt 0:00:48]} 26. Rc8 {[%emt 0:00:36]} g5 {[%emt 0:00:40]} 27. Bg2 {[%emt 0:00:42]} Rf5 {[%emt 0:00:29]} 28. Rc6 {[%emt 0:00:49]} Be5 {[%emt 0:00:34]} 29. Bxd5 {[%emt 0:00:16]} Rf6 {[%emt 0:00:32]} 30. Be4+ {[%emt 0:00:27]} Kg7 {[%emt 0:00:15]} 31. Rc5 {[%emt 0:00:36]} Bd6 {[%emt 0:00:20]} 32. Rd5 {[%emt 0:00:25]} Be7 {[%emt 0:00:33]} 33. Rd7 {[%emt 0:02:42]} Rf7 {[%emt 0:00:32]} 34. Bd5 {[%emt 0:00:15]} Kf6 {[%emt 0:00:07]} 35. Bxf7 {[%emt 0:00:07]} Kxf7 {[%emt 0:00:08]} 36. Ra7 {[%emt 0:00:06]} 1-0

[Event "Ujir Singh Thapa Memorial 2080"]
[Site "Butwal"]
[Date "2024.04.09"]
[Round "9.3"]
[White "Maharjan, Sajin"]
[Black "Maharjan, Suroj"]
[Result "0-1"]
[ECO "B07"]
[WhiteElo "1930"]
[BlackElo "1918"]
[Annotator "RC"]
[PlyCount "46"]
[EventDate "2024.04.03"]
[EventType "swiss"]
[EventCountry "NEP"]
[SourceTitle "playchess.com"]
[Source "ChessBase"]
[SourceQuality "1"]
[TimeControl "3600+30"]

1. e4 {[%emt 0:00:08]} d6 2. d4 {[%emt 0:03:50]} Nf6 3. Nc3 c6 {[%emt 0:09:37]} 4. Nf3 {[%emt 0:10:05]} Bg4 {[%emt 0:05:54]} 5. h3 {[%emt 0:04:54]} Bh5 {[%emt 0:03:58]} 6. Qe2 {[%emt 0:06:09]} Bxf3 {[%emt 0:08:07]} 7. Qxf3 {[%emt 0:04:42]} Nbd7 {[%emt 0:03:04]} 8. Be3 {[%emt 0:06:38]} a5 {[%emt 0:06:44]} 9. d5 {[%emt 0:11:08]} g6 {[%emt 0:05:53]} 10. Be2 {[%emt 0:02:24]} Bg7 {[%emt 0:05:15]} 11. g4 {[%emt 0:02:16]} a4 {[%emt 0:03:27]} 12. a3 {[%emt 0:03:14]} Qa5 {[%emt 0:03:27]} 13. O-O {[%emt 0:03:21]} O-O {[%emt 0:03:24]} 14. Rad1 {[%emt 0:02:18]} c5 {[%emt 0:01:42]} 15. Na2 {[%emt 0:00:29]} b5 {[%emt 0:01:39]} 16. c3 {[%emt 0:05:38]} Rab8 {[%emt 0:01:09]} 17. Kh1 {[%emt 0:00:35]} Ne5 {[%emt 0:02:20]} 18. Qg2 {[%emt 0:00:43]} Nc4 {[%emt 0:00:23]} 19. Bxc4 {[%emt 0:00:44]} bxc4 {[%emt 0:00:18]} 20. Rd2 {[%emt 0:00:36]} Rb6 {[%emt 0:01:07]} 21. e5 {[%emt 0:00:33]} dxe5 {[%emt 0:00:57]} 22. f3 {[%emt 0:00:33]} Rfb8 {[%emt 0:01:01]} 23. Rfd1 {[%emt 0:00:31]} Ne8 {[%emt 0:00:37]} 0-1

[Event "Ujir Singh Thapa Memorial 2080"]
[Site "Butwal"]
[Date "2024.04.09"]
[Round "9.4"]
[White "Chhetri, Ram Bahadur"]
[Black "Raghav, Srivathsav V"]
[Result "0-1"]
[ECO "E90"]
[WhiteElo "1866"]
[BlackElo "1983"]
[Annotator "RC"]
[PlyCount "88"]
[EventDate "2024.04.03"]
[EventType "swiss"]
[EventCountry "NEP"]
[SourceTitle "playchess.com"]
[Source "ChessBase"]
[SourceQuality "1"]
[TimeControl "3600+30"]

1. d4 {[%emt 0:00:30]} Nf6 {[%emt 0:09:44]} 2. c4 {[%emt 0:00:00]} g6 {[%emt 0:00:08]} 3. Nc3 {[%emt 0:00:00]} Bg7 {[%emt 0:00:04]} 4. e4 {[%emt 0:00:00]} d6 {[%emt 0:00:01]} 5. Nf3 {[%emt 0:00:34]} O-O {[%emt 0:00:07]} 6. Bd3 {[%emt 0:00:25]} Bg4 {[%emt 0:11:14]} 7. O-O {[%emt 0:00:31]} Nc6 {[%emt 0:00:19]} 8. Be3 {[%emt 0:00:03]} e5 {[%emt 0:00:06]} 9. d5 {[%emt 0:00:17]} Nd4 {[%emt 0:00:17]} 10. Be2 {[%emt 0:00:03]} Bxf3 {[%emt 0:07:33]} 11. Bxf3 {[%emt 0:00:05]} Nd7 {[%emt 0:00:05]} 12. Be2 {[%emt 0:02:50]} c5 {[%emt 0:01:59]} 13. dxc6 {[%emt 0:01:28]} bxc6 {[%emt 0:00:07]} 14. f4 f5 {[%emt 0:03:29]} 15. exf5 {[%emt 0:03:21]} Nxf5 {[%emt 0:01:35]} 16. Bc1 {[%emt 0:01:04]} exf4 {[%emt 0:00:21]} 17. Rxf4 {[%emt 0:01:35]} Be5 {[%emt 0:07:18]} 18. Rf3 {[%emt 0:01:16]} Nd4 {[%emt 0:00:32]} 19. Rh3 {[%emt 0:01:32]} Nc5 {[%emt 0:01:16]} 20. Be3 {[%emt 0:01:28]} Nce6 {[%emt 0:00:22]} 21. Bd3 {[%emt 0:04:02]} Nf5 {[%emt 0:06:01]} 22. Bxf5 {[%emt 0:05:02]} Rxf5 {[%emt 0:00:04]} 23. Qd2 {[%emt 0:01:11]} Qa5 {[%emt 0:03:06]} 24. a3 {[%emt 0:04:08]} Raf8 {[%emt 0:01:34]} 25. Rd1 {[%emt 0:03:47]} Qa6 {[%emt 0:02:48]} 26. Qd3 {[%emt 0:02:25]} Nf4 {[%emt 0:02:39]} 27. Bxf4 {[%emt 0:36:23]} Rxf4 {[%emt 0:11:11]} 28. Ne4 {[%emt 0:00:00]} Qb6+ {[%emt 0:00:00]} 29. Kh1 {[%emt 0:00:00]} Qb3 {[%emt 0:00:00]} 30. Nf2 {[%emt 0:00:00]} Qxd3 {[%emt 0:00:00]} 31. Rhxd3 {[%emt 0:00:00]} Rxf2 {[%emt 0:00:00]} 32. Kg1 {[%emt 0:00:00]} Rxb2 {[%emt 0:00:00]} 33. R3d2 {[%emt 0:00:00]} Rxd2 {[%emt 0:00:00]} 34. Rxd2 {[%emt 0:00:00]} Rf4 {[%emt 0:00:00]} 35. g3 {[%emt 0:00:00]} Rxc4 {[%emt 0:00:00]} 36. Rd3 {[%emt 0:00:00]} Rc3 {[%emt 0:00:00]} 37. Rd1 {[%emt 0:00:00]} Rxa3 {[%emt 0:00:00]} 38. Kg2 {[%emt 0:00:00]} c5 {[%emt 0:00:00]} 39. Rc1 {[%emt 0:00:00]} a5 {[%emt 0:00:00]} 40. Rc2 {[%emt 0:00:00]} a4 {[%emt 0:00:00]} 41. Rc4 {[%emt 0:00:00]} Bd4 {[%emt 0:00:00]} 42. Kf1 {[%emt 0:00:00]} d5 {[%emt 0:00:00]} 43. Rc2 {[%emt 0:00:00]} Rb3 {[%emt 0:00:00]} 44. Rc1 {[%emt 0:00:00]} a3 {[%emt 0:00:00]} 0-1

[Event "Ujir Singh Thapa Memorial 2080"]
[Site "Butwal"]
[Date "2024.04.09"]
[Round "9.5"]
[White "Ashutosh, Kumar"]
[Black "Rishabh Nishad"]
[Result "0-1"]
[ECO "A80"]
[WhiteElo "1850"]
[BlackElo "1953"]
[Annotator "RC"]
[PlyCount "78"]
[EventDate "2024.04.03"]
[EventType "swiss"]
[EventCountry "NEP"]
[SourceTitle "playchess.com"]
[Source "ChessBase"]
[SourceQuality "1"]
[TimeControl "3600+30"]

1. d4 {[%emt 1:01:00]} f5 {[%emt 0:04:57]} 2. Bg5 {[%emt 0:00:00]} h6 {[%emt 0:00:07]} 3. Bh4 {[%emt 0:00:00]} g5 {[%emt 0:00:22]} 4. e3 {[%emt 0:00:00]} Nf6 {[%emt 0:00:37]} 5. Bg3 {[%emt 0:00:00]} d6 {[%emt 0:00:28]} 6. Nc3 {[%emt 0:00:00]} Bg7 {[%emt 0:00:55]} 7. h4 {[%emt 0:00:00]} g4 {[%emt 0:00:19]} 8. Bc4 {[%emt 0:00:00]} d5 {[%emt 0:02:15]} 9. Bb3 {[%emt 0:00:00]} e6 {[%emt 0:00:12]} 10. Nge2 {[%emt 0:00:00]} O-O {[%emt 0:01:37]} 11. Nf4 {[%emt 0:00:00]} Kh7 {[%emt 0:03:04]} 12. h5 {[%emt 0:00:00]} c5 {[%emt 0:02:04]} 13. dxc5 {[%emt 0:00:00]} Qa5 {[%emt 0:01:36]} 14. Ng6 {[%emt 0:00:00]} Rd8 15. Bh4 {[%emt 0:00:00]} Nc6 {[%emt 0:07:20]} 16. O-O {[%emt 0:00:00]} Qxc5 {[%emt 0:00:49]} 17. Ne2 {[%emt 0:00:00]} Re8 {[%emt 0:04:40]} 18. Ngf4 {[%emt 0:00:00]} b6 {[%emt 0:02:01]} 19. c3 {[%emt 0:00:00]} Ne4 {[%emt 0:04:13]} 20. Ng3 {[%emt 0:00:00]} Ng5 {[%emt 0:07:04]} 21. Bc2 {[%emt 0:00:00]} Kg8 {[%emt 0:00:47]} 22. Qe2 {[%emt 0:00:00]} a5 {[%emt 0:00:36]} 23. Bd3 {[%emt 0:00:00]} Ne5 {[%emt 0:00:07]} 24. Bb5 {[%emt 0:00:00]} Ngf3+ {[%emt 0:08:01]} 25. Kh1 {[%emt 0:01:53]} Nxh4 {[%emt 0:03:33]} 26. b4 {[%emt 0:06:11]} Qe7 {[%emt 0:00:55]} 27. Bxe8 {[%emt 0:00:26]} Qxe8 {[%emt 0:00:11]} 28. Rab1 {[%emt 0:00:28]} Ba6 {[%emt 0:00:20]} 29. b5 {[%emt 0:00:31]} Bb7 {[%emt 0:00:09]} 30. Rfc1 {[%emt 0:02:11]} Rc8 {[%emt 0:00:25]} 31. Kh2 {[%emt 0:01:54]} Qe7 {[%emt 0:00:49]} 32. Qd1 {[%emt 0:00:42]} Rc4 {[%emt 0:00:55]} 33. Nge2 {[%emt 0:00:20]} Nf7 {[%emt 0:04:26]} 34. Kg3 {[%emt 0:01:17]} Ng5 {[%emt 0:01:01]} 35. Qh1 {[%emt 0:00:34]} Ne4+ {[%emt 0:00:05]} 36. Kh2 {[%emt 0:00:23]} e5 {[%emt 0:02:59]} 37. Nd3 {[%emt 0:00:17]} Qg5 {[%emt 0:02:06]} 38. Kg1 {[%emt 0:00:45]} g3 {[%emt 0:02:20]} 39. fxg3 {[%emt 0:01:08]} Qxe3+ {[%emt 0:05:35]} 0-1

[Event "Ujir Singh Thapa Memorial 2080"]
[Site "Butwal"]
[Date "2024.04.09"]
[Round "9.6"]
[White "Chaulagain, Purushottam"]
[Black "B.K, Tirth Bahadur"]
[Result "0-1"]
[ECO "D00"]
[WhiteElo "1906"]
[BlackElo "1866"]
[Annotator "RC"]
[PlyCount "58"]
[EventDate "2024.04.03"]
[EventType "swiss"]
[EventCountry "NEP"]
[SourceTitle "playchess.com"]
[Source "ChessBase"]
[SourceQuality "1"]
[TimeControl "3600+30"]

1. d4 {[%emt 0:00:05]} e6 {[%emt 0:00:42]} 2. Nc3 {[%emt 0:00:05]} d5 {[%emt 0:01:21]} 3. Bf4 {[%emt 0:00:05]} Bd6 {[%emt 0:00:55]} 4. e3 {[%emt 0:00:08]} Bxf4 {[%emt 0:00:42]} 5. exf4 {[%emt 0:00:05]} Nf6 {[%emt 0:00:58]} 6. Nf3 {[%emt 0:00:19]} Nc6 {[%emt 0:02:05]} 7. Ne5 {[%emt 0:01:25]} Nxe5 {[%emt 0:01:03]} 8. fxe5 {[%emt 0:00:10]} Nd7 {[%emt 0:00:38]} 9. Qd2 {[%emt 0:05:21]} O-O {[%emt 0:01:29]} 10. h4 {[%emt 0:02:17]} f6 {[%emt 0:01:12]} 11. f4 {[%emt 0:02:36]} fxe5 {[%emt 0:05:14]} 12. fxe5 {[%emt 0:03:51]} c5 {[%emt 0:00:43]} 13. O-O-O {[%emt 0:00:53]} cxd4 {[%emt 0:00:21]} 14. Qxd4 {[%emt 0:00:09]} Qb6 {[%emt 0:00:43]} 15. Qd2 {[%emt 0:10:44]} Nxe5 {[%emt 0:00:52]} 16. Nxd5 {[%emt 0:00:42]} exd5 {[%emt 0:02:56]} 17. Qxd5+ {[%emt 0:00:05]} Nf7 {[%emt 0:01:02]} 18. Bc4 {[%emt 0:00:42]} Bg4 {[%emt 0:06:14]} 19. Rdf1 {[%emt 0:00:12]} Rad8 {[%emt 0:02:44]} 20. Qe5 {[%emt 0:04:26]} Qd4 {[%emt 0:03:59]} 21. Qf4 {[%emt 0:09:45]} Qxf4+ {[%emt 0:00:42]} 22. Rxf4 {[%emt 0:00:01]} h5 {[%emt 0:00:58]} 23. Rhf1 {[%emt 0:00:41]} Rd7 {[%emt 0:00:10]} 24. b4 {[%emt 0:01:35]} g6 {[%emt 0:00:42]} 25. Bd3 {[%emt 0:06:31]} Kg7 {[%emt 0:00:12]} 26. a4 {[%emt 0:03:10]} Rd6 {[%emt 0:01:00]} 27. Be4 {[%emt 0:01:07]} b6 {[%emt 0:01:17]} 28. Kb2 {[%emt 0:00:39]} Rdd8 {[%emt 0:00:59]} 29. Rf6 {[%emt 0:06:51]} Bf5 {[%emt 0:33:07]} 0-1

[Event "Ujir Singh Thapa Memorial 2080"]
[Site "Butwal"]
[Date "2024.04.09"]
[Round "9.7"]
[White "Prakhar Tripathi"]
[Black "Bristy Mukherjee"]
[Result "1/2-1/2"]
[ECO "B26"]
[WhiteElo "1599"]
[BlackElo "1903"]
[Annotator "RC"]
[PlyCount "66"]
[EventDate "2024.04.03"]
[EventType "swiss"]
[EventCountry "NEP"]
[SourceTitle "playchess.com"]
[Source "ChessBase"]
[SourceQuality "1"]
[TimeControl "3600+30"]

1. e4 {[%emt 0:00:03]} c5 {[%emt 0:03:42]} 2. Nc3 {[%emt 0:00:05]} d6 {[%emt 0:00:06]} 3. g3 {[%emt 0:00:02]} Nc6 {[%emt 0:00:58]} 4. Bg2 {[%emt 0:00:06]} g6 {[%emt 0:00:16]} 5. d3 {[%emt 0:00:02]} Bg7 {[%emt 0:00:08]} 6. Be3 {[%emt 0:00:02]} Rb8 {[%emt 0:00:08]} 7. a4 {[%emt 0:00:24]} b6 {[%emt 0:04:30]} 8. Qd2 {[%emt 0:00:06]} a6 {[%emt 0:01:18]} 9. Nge2 {[%emt 0:00:44]} b5 {[%emt 0:04:36]} 10. h3 {[%emt 0:05:07]} b4 {[%emt 0:02:53]} 11. Nd1 {[%emt 0:00:50]} Nd4 {[%emt 0:01:41]} 12. Bxd4 {[%emt 0:02:49]} cxd4 {[%emt 0:00:39]} 13. b3 {[%emt 0:00:11]} e6 {[%emt 0:03:31]} 14. O-O {[%emt 0:00:35]} Ne7 {[%emt 0:01:34]} 15. Nf4 {[%emt 0:02:49]} O-O {[%emt 0:01:52]} 16. Nb2 {[%emt 0:02:30]} Bh6 {[%emt 0:16:49]} 17. Qd1 {[%emt 0:03:18]} d5 {[%emt 0:02:43]} 18. Ne2 {[%emt 0:02:31]} Bb7 {[%emt 0:02:15]} 19. g4 {[%emt 0:09:42]} Bg7 {[%emt 0:02:59]} 20. f3 {[%emt 0:07:36]} f5 {[%emt 0:02:17]} 21. exf5 {[%emt 0:01:53]} gxf5 {[%emt 0:02:49]} 22. f4 {[%emt 0:01:48]} fxg4 {[%emt 0:01:42]} 23. hxg4 {[%emt 0:00:21]} Ng6 {[%emt 0:00:40]} 24. Qe1 {[%emt 0:02:55]} Qc7 {[%emt 0:00:41]} 25. Qd2 {[%emt 0:07:00]} a5 {[%emt 0:01:25]} 26. Rf2 {[%emt 0:00:58]} Rbc8 {[%emt 0:01:08]} 27. Rc1 {[%emt 0:00:44]} Qe7 {[%emt 0:01:55]} 28. g5 {[%emt 0:01:20]} Rc7 {[%emt 0:03:06]} 29. Ng3 {[%emt 0:00:42]} Qd6 {[%emt 0:01:05]} 30. Nh5 {[%emt 0:00:42]} Rcf7 {[%emt 0:00:58]} 31. Rcf1 {[%emt 0:00:20]} h6 {[%emt 0:02:49]} 32. f5 {[%emt 0:07:16]} exf5 {[%emt 0:00:51]} 33. gxh6 {[%emt 0:00:25]} Be5 {[%emt 0:01:01]} 1/2-1/2